bitfinex-derivatives/quotes_SOLF0:USTF0_20250808
["timestamp","ask_amount","ask_price","bid_price","bid_amount"]
[1754624850657,8.7885,174.84,174.79,3.14]
[1754624850962,3.07,174.83,174.8,5.7196]
[1754624851164,5.7188,174.83,174.8,5.7196]
[1754624851363,3.07,174.82,174.81,3.14]
[1754624852462,5.7191,174.82,174.78,5.7204]
[1754624852768,3.01,174.82,174.79,3.29]
[1754624853064,3.01,174.8,174.74,3.29]
[1754624853663,3.01,174.76,174.71,3.24040503]
[1754624853859,3.01,174.75,174.69,3.24040503]
[1754624854264,3.01,174.75,174.7,3.29]
[1754624854868,3.01,174.75,174.73,5.7219]
[1754624855067,3.01,174.75,174.74,3.29]
[1754624855275,3.01,174.77,174.74,3.29]
[1754624855568,8.7309,174.77,174.74,5.7216]
[1754624855768,8.7309,174.77,174.76,3.29]
[1754624856167,5.7209,174.77,174.73,5.722]
[1754624856363,8.7311,174.76,174.75,3.29]
[1754624856871,3.01,174.74,174.72,3.29]
[1754624857166,3.01,174.73,174.72,3.29]
[1754624858267,8.7315,174.75,174.72,3.29]
[1754624858467,3.01,174.74,174.72,3.29]
[1754624858869,3.01,174.74,174.69,3.29]
[1754624859569,3.01,174.74,174.72,5.7224]
[1754624859769,3.01,174.74,174.73,3.29]
[1754624860572,5.7215,174.75,174.72,5.7224]
[1754624860870,3.01,174.73,174.72,9.0124]
[1754624862565,3.01,174.73,174.72,3.29]
[1754624863373,3.01,174.73,174.72,9.0124]
[1754624864370,6.25040503,174.75,174.72,3.29]
[1754624864567,3.24040503,174.79,174.72,3.29]
[1754624864766,3.01,174.78,174.72,3.29]
[1754624865073,5.7205,174.78,174.75,5.7212]
[1754624865273,3.01,174.77,174.75,9.0112]
[1754624865580,3.01,174.76,174.75,9.0112]
[1754624871676,3.01,174.76,174.75,3.29]
[1754624872380,5.7212,174.76,174.74,3.29]
[1754624872579,3.01,174.75,174.73,9.0119]
[1754624872780,3.01,174.75,174.73,3.29]
[1754624873077,3.01,174.73,174.71,3.29]
[1754624873276,3.01,174.72,174.71,3.29]
[1754624873473,3.01,174.72,174.71,9.0127]
[1754624873776,3.01,174.72,174.69,119.73963455]
[1754624873973,3.01,174.72,174.7,3.29]
[1754624874876,5.7227,174.72,174.69,5.7233]
[1754624875081,3.01,174.71,174.69,9.0133]
[1754624875582,5.7228,174.71,174.69,3.29]
[1754624875782,5.7228,174.71,174.64,3.29]
[1754624875783,3.24040503,174.71,174.64,3.29]
[1754624875977,6.25040503,174.71,174.64,3.29]
[1754624876175,6.25040503,174.71,174.68,5.7236]
[1754624876377,3.01,174.7,174.69,3.29]
[1754624876977,3.01,174.7,174.69,9.0134]
[1754624877172,3.24040503,174.72,174.69,3.29]
[1754624877378,6.25040503,174.72,174.66,3.29]
[1754624877981,11.97230503,174.74,174.68,3.29]
[1754624878179,6.25040503,174.74,174.68,3.29]
[1754624878380,3.01,174.73,174.68,3.29]
[1754624878883,5.7221,174.73,174.7,5.7228]
[1754624879078,3.01,174.72,174.71,3.29]
[1754624879477,3.01,174.72,174.71,9.0128]
[1754624879783,3.01,174.72,174.71,3.29]
[1754624879982,8.96230503,174.74,174.71,5.7225]
[1754624880182,3.01,174.73,174.72,3.29]
[1754624881084,3.01,174.73,174.72,9.0124]
[1754624882088,3.01,174.73,174.72,3.29]
[1754624882483,3.01,174.73,174.71,0.04030682]
[1754624882689,3.01,174.73,174.71,3.14030682]
[1754624882985,3.23,174.72,174.71,3.14030682]
[1754624883686,3.27747358,174.74,174.72,3.1]
[1754624883990,3.23,174.73,174.72,3.1]
[1754624884887,3.23,174.73,174.71,0.04030682]
[1754624885184,3.23,174.73,174.71,5.76300682]
[1754624885486,3.23,174.73,174.72,3.1]
[1754624891987,5.7221,174.73,174.72,3.1]
[1754624892391,8.9521,174.73,174.72,3.1]
[1754624892598,8.9524,174.72,174.71,0.04030682]
[1754624892793,3.23,174.72,174.71,3.14030682]
[1754624894398,8.9524,174.72,174.71,0.04030682]
[1754624895191,3.23,174.72,174.71,3.14030682]
[1754624896094,8.9524,174.72,174.71,3.14030682]
[1754624896801,8.9524,174.72,174.71,0.04030682]
[1754624897303,3.23,174.72,174.71,3.14030682]
[1754624897898,3.23,174.72,174.71,0.04030682]
[1754624898396,3.23,174.72,174.71,3.14030682]
[1754624898604,3.23,174.72,174.71,8.86310682]
[1754624899102,3.23,174.72,174.71,3.14030682]
[1754624901604,8.9524,174.72,174.71,3.14030682]
[1754624902001,3.23,174.72,174.71,3.14030682]
[1754624902306,3.23,174.72,174.71,0.04030682]
[1754624903210,8.9524,174.72,174.71,0.04030682]
[1754624903701,3.23,174.72,174.71,3.14030682]
[1754624904005,3.23,174.72,174.71,0.04030682]
[1754624904603,8.9524,174.72,174.71,0.04030682]
[1754624904804,3.23,174.72,174.67,3.1]
[1754624905000,3.23,174.69,174.64,3.1]
[1754624905201,3.23,174.66,174.65,8.8246]
[1754624906008,3.23,174.66,174.65,3.1]
[1754624906305,5.76109526,174.67,174.62,3.1]
[1754624906508,3.23,174.65,174.62,3.1]
[1754624907208,3.23,174.65,174.64,8.8247]
[1754624907410,0.03699526,174.67,174.62,3.1]
[1754624907610,3.26699526,174.67,174.62,3.1]
[1754624907911,3.23,174.66,174.65,5.7245]
[1754624908106,3.23,174.66,174.65,8.8245]
[1754624908510,3.26699526,174.67,174.66,5.7244]
[1754624908710,3.26699526,174.67,174.66,8.8244]
[1754624912712,3.26699526,174.67,174.66,3.1]
[1754624914216,3.26699526,174.67,174.66,8.8244]
[1754624916814,3.26699526,174.67,174.66,8.9344]
[1754624917315,3.26699526,174.67,174.66,3.21]
[1754624917820,3.26699526,174.67,174.66,8.9344]
[1754624918013,3.26699526,174.67,174.66,3.21]
[1754624918214,0.03699526,174.67,174.66,3.21]
[1754624918516,3.16699526,174.67,174.66,3.21]
[1754624918715,5.76109526,174.67,174.61,3.24040503]
[1754624918916,3.13,174.66,174.62,3.21]
[1754624919118,3.13,174.66,174.63,5.7253]
[1754624919311,3.13,174.66,174.64,3.21]
[1754624919512,3.13,174.66,174.64,8.9348]
[1754624919814,3.13,174.66,174.65,3.21]
[1754624920020,0.03699526,174.67,174.65,3.21]
[1754624920718,3.16699526,174.67,174.65,3.21]
[1754624921021,3.16699526,174.67,174.65,5.7246]
[1754624921215,3.16699526,174.67,174.66,3.21]
[1754624921419,0.03699526,174.67,174.66,3.21]
[1754624921616,0.03699526,174.67,174.66,8.9344]
[1754624923020,3.13,174.72,174.71,3.21]
[1754624923515,3.24040503,174.74,174.71,8.9328]
[1754624923815,3.13,174.73,174.72,3.21]
[1754624924022,3.13,174.75,174.72,3.21]
[1754624924215,0.04015798,174.74,174.72,3.21]
[1754624924921,3.13,174.73,174.72,3.21]
[1754624927520,0.04015798,174.74,174.72,3.21]
[1754624927718,3.17015798,174.74,174.72,8.9324]
[1754624928022,3.17015798,174.74,174.73,3.21]
[1754624928622,0.04015798,174.74,174.73,8.9321]
[1754624931518,3.13,174.79,174.78,3.21]
[1754624931920,5.7197,174.81,174.78,3.21]
[1754624932120,3.13,174.8,174.78,8.9305]
[1754624932320,3.13,174.8,174.79,3.21]
[1754624932822,8.8498,174.8,174.79,3.21]
[1754624933425,8.8498,174.8,174.78,3.24954059]
[1754624933728,3.13,174.79,174.78,3.24954059]
[1754624937134,3.13,174.79,174.78,0.03954059]
[1754624937626,3.13,174.8,174.78,3.24954059]
[1754624938323,3.13,174.8,174.78,8.96994059]
[1754624938518,3.13,174.84,174.78,3.24954059]
[1754624938825,5.7186,174.84,174.79,5.7199]
[1754624939025,5.7186,174.84,174.8,3.21]
[1754624939026,3.13,174.83,174.8,3.21]
[1754624939228,3.13,174.83,174.79,5.7199]
[1754624939229,3.13,174.83,174.81,3.21]
[1754624941029,29.13866,174.85,174.81,3.21]
[1754624941224,3.13,174.84,174.81,3.21]
[1754624941526,3.13,174.84,174.83,3.21]
[1754624942326,23.42036,174.85,174.83,3.21]
[1754624942727,26.66036,174.85,174.83,3.21]
[1754624943032,23.42036,174.85,174.83,3.21]
[1754624943228,3.24,174.84,174.83,3.21]
[1754624944825,3.24,174.84,174.82,0.04319304]
[1754624945532,3.24,174.83,174.82,0.04319304]
[1754624945727,3.24,174.83,174.82,3.18319304]
[1754624947933,3.24,174.83,174.82,0.04319304]
[1754624948433,3.24,174.83,174.82,3.18319304]
[1754624949130,23.42036,174.85,174.82,5.76229304]
[1754624949329,23.42036,174.85,174.83,3.14]
[1754624949537,26.66036,174.85,174.83,3.14]
[1754624950140,3.24,174.84,174.83,3.14]
[1754624950337,3.24,174.84,174.82,0.04319304]
[1754624950840,23.42036,174.85,174.83,3.14]
[1754624951038,3.24,174.84,174.82,0.04319304]
[1754624951232,6.48040503,174.83,174.82,0.04319304]
[1754624951436,12.19920503,174.83,174.82,0.04319304]
[1754624952738,5.72,174.8,174.77,3.14]
[1754624952934,6.48040503,174.79,174.77,3.14]
[1754624953139,3.24,174.78,174.77,3.14]
[1754624953341,3.24,174.78,174.75,3.14]
[1754624953540,6.48040503,174.8,174.74,3.14]
[1754624953741,3.24,174.79,174.74,3.14]
[1754624953941,3.24,174.78,174.75,5.7213]
[1754624954137,3.24,174.78,174.76,3.14]
[1754624954442,3.24,174.78,174.75,5.7213]
[1754624954847,3.24,174.78,174.76,3.14]
[1754624955243,8.96040503,174.8,174.76,5.721]
[1754624955445,3.24,174.79,174.77,3.14]
[1754624956146,8.9596,174.81,174.77,3.14]
[1754624956346,3.24,174.79,174.78,3.14]
[1754624958647,3.24,174.79,174.74,3.14]
[1754624958949,3.24,174.77,174.74,3.14]
[1754624959549,3.24,174.77,174.76,8.861]
[1754624959745,3.24,174.77,174.76,3.14]
[1754624960050,3.24,174.77,174.71,3.24040503]
[1754624960347,3.24,174.77,174.75,3.14]
[1754624960751,6.48040503,174.76,174.73,3.14]
[1754624960947,3.24,174.75,174.73,3.14]
[1754624963952,8.9615,174.75,174.73,3.14]
[1754624964153,3.24,174.74,174.71,5.7226]
[1754624964352,3.24,174.74,174.72,3.14]
[1754624964950,3.24,174.74,174.72,8.8624]
[1754624965457,3.24,174.75,174.67,3.24040503]
[1754624965852,3.24,174.74,174.73,5.722]
[1754624966456,3.24,174.74,174.73,8.862]
[1754624969856,3.24,174.76,174.75,3.14]
[1754624970061,3.24,174.79,174.75,3.14]
[1754624970261,8.96020503,174.8,174.75,3.14]
[1754624970563,3.24,174.78,174.77,3.14]
[1754624972366,3.24,174.78,174.77,8.8608]
[1754624972560,3.03,174.8,174.77,3.08]
[1754624973463,3.03,174.8,174.78,5.7205]
[1754624973665,3.03,174.8,174.79,3.08]
[1754624975167,3.03,174.8,174.75,3.08]
[1754624975558,8.7498,174.8,174.76,5.7209]
[1754624975763,3.03,174.79,174.77,3.08]
[1754624977166,3.03,174.79,174.78,3.08]
[1754624978568,3.03,174.79,174.78,8.8005]
[1754624980175,3.03,174.8,174.79,3.08]
[1754624981882,8.7493,174.82,174.79,3.08]
[1754624982071,3.03,174.81,174.75,3.08]
[1754624982270,3.24040503,174.81,174.75,3.08]
[1754624982472,3.03,174.79,174.77,3.08]
[1754624982870,8.7504,174.79,174.77,3.08]
[1754624983074,3.03,174.78,174.73,3.08]
[1754624983374,8.7507,174.78,174.74,5.7216]
[1754624983571,3.03,174.77,174.75,3.08]
[1754624983972,3.03,174.77,174.75,8.8013]
[1754624984172,3.03,174.77,174.76,3.08]
[1754624984976,5.7203,174.79,174.76,5.7211]
[1754624985178,5.7203,174.79,174.71,123.4062468]
[1754624985179,3.03,174.82,174.75,3.08]
[1754624985378,3.03,174.82,174.77,3.08]
[1754624985574,5.7194,174.82,174.77,3.08]
[1754624985878,3.03,174.8,174.78,5.7202]
[1754624986077,5.7194,174.82,174.79,3.08]
[1754624986376,3.03,174.8,174.79,3.08]
[1754624986577,5.719,174.83,174.79,5.7199]
[1754624986768,3.03,174.82,174.81,3.08]
[1754624987079,8.7492,174.82,174.81,3.08]
[1754624987474,3.03,174.82,174.81,3.08]
[1754624989481,3.03,174.82,174.8,5.7198]
[1754624989683,3.03,174.81,174.8,8.7998]
[1754624990479,3.03,174.81,174.77,3.08]
[1754624990677,6.27040503,174.81,174.78,3.08]
[1754624990873,3.03,174.8,174.78,3.08]
[1754624991576,3.03,174.8,174.71,156.4062468]
[1754624991577,3.03,174.79,174.74,3.08]
[1754624991782,6.27040503,174.79,174.73,3.08]
[1754624991981,3.03,174.78,174.73,3.08]
[1754624992486,8.7507,174.78,174.73,3.08]
[1754624992784,3.03,174.77,174.73,3.08]
[1754624992980,3.03,174.77,174.75,5.7212]
[1754624993182,3.03,174.77,174.75,3.08]
[1754624993484,3.03,174.77,174.75,8.8013]
[1754624993782,3.03,174.76,174.75,8.8013]
[1754624997090,3.03,174.79,174.74,3.08]
[1754624997392,3.24040503,174.78,174.72,3.08]
[1754624997588,3.03,174.77,174.75,5.7212]
[1754624997887,3.24040503,174.78,174.71,126.64665183]
[1754624997888,5.7211,174.76,174.72,3.08]
[1754624998092,3.03,174.74,174.73,5.7221]
[1754624998286,3.03,174.74,174.73,8.8021]
[1754625000694,3.03,174.74,174.73,3.08]
[1754625002292,3.09,174.75,174.73,5.7221]
[1754625002500,3.09,174.75,174.74,3.31]
[1754625002797,3.09,174.76,174.74,5.7215]
[1754625003001,3.09,174.76,174.71,123.4062468]
[1754625003292,3.09,174.75,174.73,5.7218]
[1754625003597,8.8112,174.76,174.71,123.4062468]
[1754625004102,8.8112,174.76,174.72,3.31]
[1754625004597,8.8112,174.76,174.75,3.31]
[1754625004794,5.7209,174.77,174.75,3.31]
[1754625004997,5.7209,174.77,174.71,123.4062468]
[1754625005198,3.09,174.76,174.75,3.31]
[1754625005690,3.09,174.76,174.75,9.0315]
[1754625005891,3.09,174.76,174.75,3.31]
[1754625006399,8.8106,174.78,174.75,3.31]
[1754625006592,3.09,174.76,174.75,3.31]
[1754625007091,3.09,174.79,174.72,3.31]
[1754625007600,3.09,174.79,174.75,5.7212]
[1754625007792,3.09,174.77,174.75,9.0312]
[1754625007993,3.09,174.77,174.75,3.31]
[1754625008694,3.09,174.76,174.73,5.7221]
[1754625008897,3.09,174.76,174.74,3.31]
[1754625009098,3.24040503,174.78,174.71,123.4062468]
[1754625009294,3.09,174.74,174.72,9.0323]
[1754625009499,3.09,174.75,174.74,3.31]
[1754625010202,8.8116,174.75,174.74,3.31]
[1754625016907,3.09,174.73,174.72,3.31]
[1754625017409,8.8123,174.73,174.72,3.31]
[1754625017607,3.09,174.73,174.68,3.31]
[1754625017814,3.09,174.71,174.68,3.31]
[1754625018109,5.7229,174.71,174.68,5.7236]
[1754625018417,3.09,174.69,174.68,5.7236]
[1754625018607,3.09,174.71,174.69,5.7233]
[1754625018911,3.24040503,174.72,174.7,3.31]
[1754625019312,3.09,174.71,174.7,3.31]
[1754625021314,8.8128,174.71,174.7,3.31]
[1754625021515,3.09,174.71,174.68,3.31]
[1754625021710,3.09,174.71,174.69,3.31]
[1754625021912,8.813,174.71,174.69,3.31]
[1754625022106,3.09,174.7,174.69,3.31]
[1754625022410,8.8131,174.7,174.67,5.724]
[1754625022714,3.09,174.69,174.64,3.31]
[1754625023110,3.09,174.68,174.66,3.31]
[1754625025216,3.09,174.68,174.67,3.31]
[1754625031321,8.96370503,174.7,174.67,3.31]
[1754625031722,3.02,174.68,174.67,3.31]
[1754625034321,3.02,174.68,174.65,5.7246]
[1754625034530,3.02,174.68,174.64,3.14]
[1754625034531,3.24040503,174.66,174.64,3.14]
[1754625034730,3.02,174.65,174.64,3.14]
[1754625035222,3.02,174.65,174.64,8.8651]
[1754625035922,3.24040503,174.66,174.64,8.8651]
[1754625036123,3.24040503,174.66,174.63,123.69767805]
[1754625036124,6.26040503,174.66,174.65,3.14]
[1754625038732,3.02,174.66,174.65,3.14]
[1754625039330,8.7444,174.66,174.65,3.14]
[1754625039831,8.7444,174.66,174.62,5.7255]
[1754625040128,3.02,174.64,174.63,3.14]
[1754625043332,6.26040503,174.65,174.63,3.14]
[1754625045134,3.24040503,174.65,174.63,3.14]
[1754625045335,3.02,174.64,174.63,3.14]
[1754625050735,5.09784401,174.64,174.63,3.14]
[1754625053046,5.09784401,174.64,174.63,8.8654]
[1754625053242,5.09784401,174.64,174.63,3.14]
[1754625053840,2.07784401,174.65,174.63,3.14]
[1754625054145,2.07784401,174.66,174.63,3.14]
[1754625054342,3.02,174.65,174.63,3.14]
[1754625055045,3.02,174.65,174.63,5.7252]
[1754625055242,3.02,174.65,174.64,3.14]
[1754625056142,8.7447,174.65,174.64,3.14]
[1754625056344,3.02,174.64,174.59,2.07784401]
[1754625056542,2.07784401,174.62,174.6,3.14]
[1754625056743,3.02,174.61,174.6,3.14]
[1754625057041,3.02,174.61,174.6,8.8664]
[1754625057243,5.09784401,174.62,174.6,3.14]
[1754625057446,2.07784401,174.63,174.61,8.866]
[1754625057646,5.09784401,174.63,174.62,3.14]
[1754625060143,3.02,174.63,174.62,8.8657]
[1754625060339,5.09784401,174.64,174.63,3.14]
[1754625061648,3.02,174.64,174.63,8.8654]
[1754625061847,3.05,174.66,174.63,3.14]
[1754625062049,5.12784401,174.66,174.63,3.14]
[1754625062251,3.05,174.65,174.64,3.22]
[1754625062446,2.07784401,174.66,174.62,3.22]
[1754625062643,3.05,174.65,174.62,3.22]
[1754625062846,3.05,174.65,174.64,3.22]
[1754625063251,3.05,174.65,174.64,8.9451]
[1754625063551,3.05,174.67,174.61,3.22]
[1754625063852,3.05,174.67,174.65,5.7247]
[1754625064052,3.05,174.67,174.66,3.22]
[1754625065248,3.05,174.66,174.63,5.7254]
[1754625065453,3.05,174.66,174.64,3.22]
[1754625066254,5.7244,174.66,174.64,3.22]
[1754625066553,3.05,174.65,174.64,3.22]
[1754625070861,3.05,174.64,174.63,3.22]
[1754625071259,8.7748,174.65,174.62,8.9456]
[1754625071462,3.05,174.65,174.63,3.22]
[1754625071758,3.05,174.64,174.63,5.7254]
[1754625072259,3.05,174.64,174.63,8.9454]
[1754625073967,3.05,174.64,174.63,3.22]
[1754625075961,5.725,174.64,174.61,8.9459]
[1754625076165,3.05,174.63,174.61,8.9459]
[1754625076568,3.05,174.63,174.62,3.22]
[1754625076962,3.05,174.62,174.6,3.22]
[1754625077167,3.05,174.61,174.6,3.22]
[1754625078363,3.05,174.61,174.6,8.9464]
[1754625078565,3.05,174.61,174.6,3.22]
[1754625079167,8.97179277,174.62,174.6,3.22]
[1754625079767,3.05,174.61,174.6,3.22]
[1754625080259,3.24609277,174.63,174.56,3.24609277]
[1754625080458,6.29609277,174.63,174.57,3.22]
[1754625082168,6.29609277,174.63,174.61,5.726]
[1754625082370,3.05,174.62,174.61,5.726]
[1754625082669,5.12828339,174.62,174.61,5.726]
[1754625082869,5.12828339,174.62,174.61,8.946]
[1754625085268,2.07828339,174.64,174.61,3.22]
[1754625085472,5.12828339,174.64,174.61,3.22]
[1754625085771,3.05,174.64,174.61,3.22]
[1754625086073,5.12828339,174.64,174.61,3.22]
[1754625086375,5.12828339,174.64,174.63,5.7252]
[1754625086569,5.12828339,174.64,174.63,8.9452]
[1754625087068,3.05,174.69,174.62,5.29828339]
[1754625087273,5.12828339,174.69,174.65,3.22]
[1754625087473,3.05,174.66,174.61,3.22]
[1754625087667,3.05,174.64,174.61,3.22]
[1754625087876,3.05,174.66,174.63,3.22]
[1754625088273,3.05,174.66,174.65,8.9447]
[1754625088474,2.07828339,174.69,174.65,3.22]
[1754625088772,2.07828339,174.69,174.67,3.22]
[1754625089072,3.05,174.68,174.67,5.7241]
[1754625089472,3.05,174.68,174.67,8.9441]
[1754625089776,3.05,174.67,174.65,3.22]
[1754625090174,5.12828339,174.66,174.65,3.22]
[1754625090469,5.12828339,174.66,174.65,8.9446]
[1754625090670,3.05,174.66,174.65,3.22]
[1754625090874,3.05,174.66,174.62,3.22]
[1754625091069,6.29601374,174.66,174.62,3.22]
[1754625091268,3.05,174.65,174.62,3.22]
[1754625091571,3.05,174.65,174.59,3.22]
[1754625092270,3.05,174.65,174.58,3.24601374]
[1754625092271,3.05,174.65,174.64,3.24]
[1754625093372,6.49601374,174.68,174.6,3.24601374]
[1754625093573,3.25,174.67,174.61,3.24]
[1754625093776,8.9742,174.67,174.61,3.24]
[1754625093970,3.25,174.66,174.61,3.24]
[1754625094171,3.25,174.66,174.63,5.7252]
[1754625094372,5.7244,174.66,174.63,8.9652]
[1754625094668,3.25,174.65,174.63,8.9652]
[1754625095076,3.25,174.65,174.64,3.24]
[1754625095370,3.25,174.65,174.64,8.965]
[1754625095575,3.25,174.66,174.64,3.24]
[1754625096174,3.25,174.66,174.65,8.9647]
[1754625099971,3.25,174.66,174.65,3.24]
[1754625100176,3.25,174.66,174.64,8.9649]
[1754625100670,3.25,174.65,174.62,5.7256]
[1754625100877,3.25,174.63,174.62,8.9656]
[1754625102678,3.25,174.65,174.63,8.9654]
[1754625103176,3.25,174.65,174.62,5.7256]
[1754625103378,3.25,174.65,174.62,8.9656]
[1754625103874,3.25,174.65,174.62,5.7256]
[1754625104078,3.25,174.65,174.63,3.24]
[1754625104778,3.25,174.65,174.62,5.7256]
[1754625104980,3.25,174.65,174.62,8.9656]
[1754625105279,3.25,174.65,174.62,5.7256]
[1754625105580,3.25,174.65,174.63,3.24]
[1754625105978,3.25,174.65,174.63,8.9653]
[1754625106278,3.25,174.65,174.57,3.24601374]
[1754625106279,3.25,174.65,174.64,3.24]
[1754625106579,3.25,174.65,174.64,8.965]
[1754625107578,3.25,174.65,174.64,3.24]
[1754625108385,3.25,174.65,174.62,8.9656]
[1754625110486,5.7248,174.65,174.62,8.9656]
[1754625110688,3.25,174.64,174.62,8.9656]
[1754625112784,3.25,174.64,174.62,5.7256]
[1754625112991,3.25,174.64,174.63,3.24]
[1754625113182,6.49601374,174.64,174.63,3.24]
[1754625113384,3.25,174.63,174.54,3.24601374]
[1754625113584,3.24601374,174.62,174.57,3.24]
[1754625113782,6.49601374,174.62,174.61,3.24]
[1754625114388,3.25,174.62,174.61,8.966]
[1754625114691,5.32847432,174.62,174.61,8.966]
[1754625114994,5.32847432,174.62,174.61,3.24]
[1754625115795,5.32847432,174.62,174.61,8.966]
[1754625116694,2.07847432,174.62,174.61,8.966]
[1754625117093,5.32847432,174.62,174.61,8.966]
[1754625118193,5.32847432,174.62,174.61,3.24]
[1754625119196,5.32847432,174.62,174.61,8.966]
[1754625119503,5.32847432,174.62,174.61,3.24]
[1754625120800,3.25,174.62,174.61,3.24]
[1754625120996,5.32847432,174.62,174.61,3.24]
[1754625121192,5.32847432,174.62,174.61,8.966]
[1754625121904,5.32847432,174.62,174.61,5.726]
[1754625122500,5.32847432,174.62,174.61,8.836]
[1754625122901,5.32847432,174.62,174.61,5.726]
[1754625123402,2.07847432,174.62,174.6,5.7262]
[1754625123702,5.16847432,174.61,174.6,8.8362]
[1754625123997,5.16847432,174.61,174.6,3.11]
[1754625124201,3.09,174.6,174.56,3.11]
[1754625124401,2.07847432,174.59,174.56,3.11]
[1754625124709,3.09,174.58,174.57,8.8373]
[1754625125899,3.09,174.58,174.57,5.7273]
[1754625126100,3.09,174.58,174.57,8.8373]
[1754625126704,2.07847432,174.59,174.58,8.837]
[1754625127003,5.16847432,174.59,174.58,8.837]
[1754625132100,5.16847432,174.59,174.58,5.727]
[1754625132305,5.16847432,174.59,174.58,8.837]
[1754625132601,3.09,174.59,174.58,8.837]
[1754625132904,5.16847432,174.59,174.58,8.837]
[1754625134102,5.7255,174.63,174.59,5.7264]
[1754625134406,5.16847432,174.6,174.59,8.8364]
[1754625136102,3.09,174.61,174.59,3.11]
[1754625137007,3.09,174.61,174.6,5.7264]
[1754625137208,2.07847432,174.62,174.6,3.11]
[1754625137407,3.09,174.61,174.6,3.11]
[1754625138004,3.09,174.61,174.6,8.8364]
[1754625140906,5.16847432,174.61,174.6,8.8364]
[1754625141606,5.16847432,174.61,174.59,5.7265]
[1754625141810,5.16847432,174.6,174.59,5.7265]
[1754625142009,5.16847432,174.6,174.59,8.8365]
[1754625142606,2.07847432,174.6,174.57,3.11]
[1754625142913,3.09,174.57,174.56,3.11]
[1754625143304,3.09,174.57,174.56,8.8377]
[1754625143810,3.09,174.56,174.55,8.8378]
[1754625144110,5.16847432,174.56,174.55,8.8378]
[1754625144301,2.07847432,174.56,174.55,8.8378]
[1754625144507,2.07847432,174.58,174.57,5.7272]
[1754625144706,5.16847432,174.58,174.57,8.8372]
[1754625144909,3.09,174.6,174.57,3.11]
[1754625145109,3.09,174.6,174.59,8.8367]
[1754625145311,5.16847432,174.6,174.59,8.8367]
[1754625146014,5.16847432,174.61,174.6,8.8364]
[1754625146415,5.16847432,174.61,174.6,3.11]
[1754625146715,3.09,174.6,174.59,8.8365]
[1754625147118,5.16847432,174.6,174.59,8.8365]
[1754625149720,2.07847432,174.6,174.59,8.8365]
[1754625150121,2.07847432,174.62,174.61,5.7259]
[1754625150323,5.16847432,174.62,174.61,8.8359]
[1754625151124,5.16847432,174.62,174.61,3.11]
[1754625152826,5.16847432,174.62,174.6,5.7262]
[1754625153126,3.25,174.61,174.6,9.0362]